fUSD/lending_fUSD_20250115
["ID","MTS","AMOUNT","RATE_DAILY","PERIOD"]
[348974143,1736907041638,-150.0,0.00017821,2]
[348974144,1736907041651,-150.0,0.0001785,2]
[348974145,1736907041660,-150.0,0.00017858,2]
[348974146,1736907041668,-150.0,0.00017885,2]
[348974147,1736907041677,-150.0,0.00017973,2]
[348974148,1736907041687,-758.55775275,0.00018,2]
[348974149,1736907041701,-9449.6,0.00018,2]
[348974150,1736907041711,-2680.88369244,0.00018,2]
[348974151,1736907041723,-18839.167107,0.00018,2]
[348974152,1736907041918,-150.0,0.0001775,2]
[348974153,1736907041928,-150.0,0.00017772,2]
[348974154,1736907041937,-150.0,0.00017775,2]
[348974155,1736907041949,-150.0,0.00017777,2]
[348974156,1736907041958,-150.0,0.00017778,2]
[348974157,1736907041967,-150.0,0.00017802,2]
[348974158,1736907041978,-150.0,0.00017807,2]
[348974159,1736907041988,-150.0,0.00017808,2]
[348974160,1736907041997,-150.0,0.00017813,2]
[348974161,1736907042007,-150.0,0.00017815,2]
[348974162,1736907042017,-150.0,0.00017849,2]
[348974163,1736907042027,-150.0,0.00017852,2]
[348974164,1736907042036,-150.0,0.00017853,2]
[348974165,1736907042045,-150.0,0.00017854,2]
[348974166,1736907042053,-150.0,0.0001786,2]
[348974167,1736907042063,-150.0,0.00017863,2]
[348974168,1736907042072,-150.0,0.00017865,2]
[348974169,1736907042082,-150.0,0.00017866,2]
[348974170,1736907042091,-150.0,0.00017872,2]
[348974171,1736907042100,-150.0,0.00017883,2]
[348974172,1736907042110,-150.0,0.00017885,2]
[348974173,1736907042119,-150.0,0.00017886,2]
[348974174,1736907042129,-150.0,0.00017886,2]
[348974175,1736907042138,-150.0,0.0001789,2]
[348974176,1736907042148,-150.0,0.0001789,2]
[348974177,1736907042157,-150.0,0.00017894,2]
[348974178,1736907042166,-150.0,0.000179,2]
[348974179,1736907042175,-145.1546555,0.00017903,2]
[348974180,1736907042186,-4.8453445,0.00017903,2]
[348974181,1736907042197,-150.0,0.00017905,2]
[348974182,1736907042206,-150.0,0.0001791,2]
[348974183,1736907042216,-150.0,0.00017912,2]
[348974184,1736907042225,-30.02965549,0.00017916,2]
[348974185,1736907042236,-119.97034451,0.00017916,2]
[348974186,1736907042245,-150.0,0.00017919,2]
[348974187,1736907042254,-9.20965549,0.00017922,2]
[348974188,1736907042282,-150.0,0.00017732,2]
[348974189,1736907042292,-150.0,0.00017759,2]
[348974190,1736907042301,-150.0,0.00017914,2]
[348974191,1736907042311,-140.79034451,0.00017922,2]
[348974192,1736907042319,-150.0,0.00017958,2]
[348974193,1736907042328,-150.0,0.00017961,2]
[348974194,1736907042337,-150.0,0.00017976,2]
[348974195,1736907042346,-150.0,0.00017987,2]
[348974196,1736907042355,-150.0,0.00017991,2]
[348974197,1736907042365,-150.0,0.00017996,2]
[348974198,1736907042374,-150.0,0.00017998,2]
[348974199,1736907042382,-54614.68252745,0.00018,2]
[348974200,1736907042393,-1528.95291946,0.00018,2]
[348974213,1736907045118,-150.0,0.00017731,2]
[348974214,1736907045129,-150.0,0.00017731,2]
[348974215,1736907045139,-150.0,0.00017732,2]
[348974216,1736907045149,-150.0,0.00017739,2]
[348974217,1736907045158,-150.0,0.00017751,2]
[348974218,1736907045168,-150.0,0.00017764,2]
[348974219,1736907045178,-150.0,0.00017769,2]
[348974220,1736907045188,-150.0,0.00017771,2]
[348974221,1736907045199,-149.03038877,0.00017772,2]
[348974222,1736907045330,-150.0,0.00017771,2]
[348974223,1736907045341,-0.96961123,0.00017772,2]
[348974224,1736907045352,-150.0,0.00017774,2]
[348974225,1736907045363,-150.0,0.00017782,2]
[348974226,1736907045373,-150.0,0.0001779,2]
[348974227,1736907045383,-150.0,0.00017801,2]
[348974228,1736907045392,-150.0,0.00017802,2]
[348974229,1736907045402,-150.0,0.00017803,2]
[348974230,1736907045411,-150.0,0.00017805,2]
[348974231,1736907045421,-150.0,0.00017806,2]
[348974232,1736907045432,-150.0,0.00017807,2]
[348974233,1736907045442,-150.0,0.00017811,2]
[348974234,1736907045452,-150.0,0.00017818,2]
[348974235,1736907045462,-150.0,0.00017821,2]
[348974236,1736907045472,-150.0,0.00017823,2]
[348974237,1736907045481,-150.0,0.00017824,2]
[348974238,1736907045491,-150.0,0.00017825,2]
[348974239,1736907045500,-150.0,0.00017827,2]
[348974240,1736907045509,-150.0,0.00017834,2]
[348974241,1736907045519,-150.0,0.00017837,2]
[348974242,1736907045528,-150.0,0.00017838,2]
[348974243,1736907045538,-150.0,0.00017841,2]
[348974244,1736907045550,-150.0,0.00017843,2]
[348974245,1736907045560,-150.0,0.00017844,2]
[348974246,1736907045569,-85.31038877,0.00017846,2]
[348974247,1736907045581,-64.68961123,0.00017846,2]
[348974248,1736907045591,-150.0,0.00017846,2]
[348974249,1736907045600,-150.0,0.00017846,2]
[348974250,1736907045610,-150.0,0.00017847,2]
[348974251,1736907045620,-150.0,0.00017847,2]
[348974252,1736907045629,-150.0,0.00017848,2]
[348974253,1736907045639,-150.0,0.00017854,2]
[348974254,1736907045651,-150.0,0.00017854,2]
[348974255,1736907045662,-150.0,0.00017855,2]
[348974256,1736907045672,-150.0,0.00017856,2]
[348974257,1736907045682,-150.0,0.00017856,2]
[348974258,1736907045692,-150.0,0.00017856,2]
[348974259,1736907045703,-150.0,0.00017857,2]
[348974260,1736907045713,-150.0,0.00017858,2]
[348974261,1736907045724,-150.0,0.0001786,2]
[348974262,1736907045734,-150.0,0.00017861,2]
[348974263,1736907045744,-150.0,0.00017864,2]
[348974264,1736907045753,-150.0,0.00017871,2]
[348974265,1736907045763,-150.0,0.00017872,2]
[348974266,1736907045773,-150.0,0.00017876,2]
[348974267,1736907045782,-150.0,0.00017878,2]
[348974268,1736907045791,-150.0,0.00017878,2]
[348974269,1736907045801,-150.0,0.00017879,2]
[348974270,1736907045811,-150.0,0.00017886,2]
[348974271,1736907045820,-150.0,0.00017886,2]
[348974272,1736907045830,-150.0,0.00017887,2]
[348974273,1736907045839,-150.0,0.00017891,2]
[348974274,1736907045848,-150.0,0.00017897,2]
[348974275,1736907045858,-289.54968138,0.000179,2]
[348974276,1736907045867,-150.0,0.000179,2]
[348974277,1736907045877,-150.0,0.00017904,2]
[348974278,1736907045886,-150.0,0.00017905,2]
[348974279,1736907045896,-72.78753428,0.00017906,2]
[348974280,1736907045908,-77.21246572,0.00017906,2]
[348974281,1736907045917,-150.0,0.00017915,2]
[348974282,1736907045927,-150.0,0.00017917,2]
[348974283,1736907045937,-150.0,0.00017917,2]
[348974284,1736907045946,-150.0,0.00017922,2]
[348974285,1736907045956,-150.0,0.00017923,2]
[348974287,1736907045966,-150.0,0.00017923,2]
[348974289,1736907045975,-150.0,0.00017932,2]
[348974291,1736907045985,-150.0,0.00017933,2]
[348974293,1736907045995,-150.0,0.00017934,2]
[348974294,1736907046005,-150.0,0.00017934,2]
[348974295,1736907046016,-150.0,0.00017936,2]
[348974296,1736907046026,-150.0,0.00017937,2]
[348974297,1736907046035,-150.0,0.00017938,2]
[348974298,1736907046045,-150.0,0.00017941,2]
[348974299,1736907046055,-150.0,0.00017941,2]
[348974300,1736907046065,-150.0,0.00017947,2]
[348974301,1736907046075,-150.0,0.00017951,2]
[348974302,1736907046085,-150.0,0.00017952,2]
[348974303,1736907046094,-150.0,0.00017954,2]
[348974304,1736907046104,-150.0,0.00017959,2]
[348974305,1736907046113,-150.0,0.0001796,2]
[348974306,1736907046123,-150.0,0.0001796,2]
[348974307,1736907046133,-150.0,0.00017965,2]
[348974308,1736907046144,-150.0,0.00017966,2]
[348974309,1736907046153,-150.0,0.0001797,2]
[348974310,1736907046163,-150.0,0.00017972,2]
[348974311,1736907046173,-150.0,0.00017972,2]
[348974312,1736907046182,-150.0,0.00017976,2]
[348974313,1736907046192,-150.0,0.0001798,2]
[348974314,1736907046203,-150.0,0.0001798,2]
[348974315,1736907046212,-150.0,0.00017982,2]
[348974316,1736907046222,-150.0,0.00017983,2]
[348974317,1736907046232,-150.0,0.00017984,2]
[348974318,1736907046242,-150.0,0.00017986,2]
[348974319,1736907046252,-150.0,0.00017986,2]
[348974320,1736907046261,-150.0,0.00017986,2]
[348974321,1736907046272,-150.0,0.00017988,2]
[348974322,1736907046282,-150.0,0.0001799,2]
[348974324,1736907046292,-150.0,0.00017992,2]
[348974325,1736907046301,-150.0,0.00017995,2]
[348974326,1736907046311,-150.0,0.00017999,2]
[348974327,1736907046320,-2119.64290492,0.00018,2]
[348974335,1736907046659,-500.0,0.00017292,2]
[348974336,1736907046670,-150.0,0.00017734,2]
[348974337,1736907046680,-150.0,0.00017736,2]
[348974338,1736907046691,-150.0,0.00017738,2]
[348974339,1736907046701,-150.0,0.00017766,2]
[348974340,1736907046716,-150.0,0.00017774,2]
[348974341,1736907046728,-150.0,0.00017775,2]
[348974342,1736907046738,-150.0,0.00017787,2]
[348974343,1736907046749,-150.0,0.00017804,2]
[348974344,1736907046759,-150.0,0.00017806,2]
[348974345,1736907046769,-150.0,0.00017809,2]
[348974346,1736907046779,-150.0,0.00017811,2]
[348974347,1736907046790,-150.0,0.00017816,2]
[348974348,1736907046800,-109.77234855,0.00017828,2]
[348974349,1736907046857,-40.22765145,0.00017828,2]
[348974350,1736907046867,-150.0,0.00017828,2]
[348974351,1736907046878,-150.0,0.00017828,2]
[348974352,1736907046888,-150.0,0.00017831,2]
[348974353,1736907046898,-150.0,0.00017833,2]
[348974354,1736907046909,-150.0,0.00017866,2]
[348974355,1736907046918,-150.0,0.00017871,2]
[348974356,1736907046927,-150.0,0.00017872,2]
[348974358,1736907046939,-150.0,0.00017873,2]
[348974359,1736907047143,-150.0,0.00017885,2]
[348974360,1736907047153,-150.0,0.00017901,2]
[348974361,1736907047162,-150.0,0.00017928,2]
[348974362,1736907047171,-150.0,0.00017938,2]
[348974363,1736907047180,-150.0,0.00017958,2]
[348974364,1736907047190,-150.0,0.00017958,2]
[348974365,1736907047200,-150.0,0.00017962,2]
[348974366,1736907047210,-150.0,0.0001799,2]
[348974367,1736907047220,-60681.47250729,0.00018,2]
[348974368,1736907047233,-550.85,0.00018,2]
[348974370,1736907047245,-2263.0641,0.00018,2]
[348974373,1736907047259,-8522.3002442,0.00018,2]
[348974374,1736907047271,-626.04759607,0.00018,2]
[348974375,1736907047283,-3789.13606921,0.00018,2]
[348974376,1736907047295,-7880.0,0.00018,2]
[348974382,1736907919968,1882.67898074,9e-05,2]
[348974404,1736908080493,993136.79233988,0.0001,2]
[348974418,1736908231874,-2588.440342,9.948e-05,2]
[348974419,1736908231886,-500.0,9.999e-05,2]
[348974420,1736908231896,-480.43130321,9.999e-05,2]
[348974421,1736908231910,-19.56869679,9.999e-05,2]
[348974422,1736908231921,-449.74002329,9.999e-05,2]
[348974423,1736908231936,-50.25997671,9.999e-05,2]
[348974424,1736908231946,-217.17069528,9.999e-05,2]
[348974425,1736908231958,-241.79733844,9.999e-05,2]
[348974426,1736908232200,-150.54363324,9.999e-05,2]
[348974427,1736908232211,-1126.08940715,0.0001,2]
[348974428,1736908232224,-764.09346099,0.0001,2]
[348974429,1736908232237,-10204.0,0.0001,2]
[348974444,1736908237715,-500.0,9.999e-05,2]
[348974445,1736908237725,-500.0,9.999e-05,2]
[348974446,1736908237736,-500.0,9.999e-05,2]
[348974447,1736908237747,-500.0,9.999e-05,2]
[348974448,1736908237758,-68047.5,0.0001,2]
[348974449,1736908237772,-339940.60383651,0.0001,2]
[348974450,1736908237840,-38256.92328692,0.0001,2]
[348974451,1736908237853,-4277194.59318411,0.0001,2]
[348974452,1736908237967,-10985.55453406,0.0001,2]
[348974453,1736908237983,-58835.75205959,0.0001,2]
[348974454,1736908237996,-2284.0,0.0001,2]
[348974455,1736908238010,-48606.08167328,0.0001,2]
[348974469,1736908239692,-472.63770198,9.999e-05,2]
[348974470,1736908239819,-51.2460943,9.999e-05,2]
[348974471,1736908239829,-421.32173356,9.999e-05,2]
[348974472,1736908239842,-75.19712827,9.999e-05,2]
[348974473,1736908239852,-1831.15287173,0.0001,2]
[348974474,1736908239864,-652.01062997,0.0001,2]
[348974475,1736908240119,-325.87920279,0.0001,2]
[348974476,1736908240131,-361.44000017,0.0001,2]
[348974480,1736908242908,-4678.37270548,0.0001,2]
[348974481,1736908242921,-3703.88611207,0.0001,2]
[348974482,1736908242933,-9836.2,0.0001,2]
[348974483,1736908242945,-9146.90009583,0.0001,2]
[348974484,1736908243043,-526.708,0.0001,2]
[348974485,1736908243055,-1390.6786,0.0001,2]
[348974486,1736908243068,-2335.78295979,0.0001,2]
[348974498,1736908245811,-514.05533528,9.999e-05,2]
[348974500,1736908245822,-526.35187993,9.999e-05,2]
[348974501,1736908245832,-3630.87949277,0.0001,2]
[348974502,1736908245844,-30458.9443115,0.0001,2]
[348974504,1736908245934,-739.671769,0.0001,2]
[348974505,1736908246075,-296.41577635,0.0001,2]
[348974506,1736908246088,-2974.55077147,0.0001,2]
[348974507,1736908246192,-3463.42391601,0.0001,2]
[348974509,1736908500070,1153.11,0.00013847,120]
[348974511,1736908831977,4987.94006097,0.000109,7]
[348974537,1736909432176,-150.0,9.973e-05,2]
[348974538,1736909432186,-231.661,9.998e-05,2]
[348974539,1736909433215,-68.339,9.998e-05,2]
[348974540,1736909433225,-542.69448261,9.999e-05,2]
[348974541,1736909433234,-161.10849029,9.999e-05,2]
[348974553,1736909437823,-338.89150971,9.999e-05,2]
[348974554,1736909437833,-500.0,9.999e-05,2]
[348974555,1736909437845,-526.03348284,9.999e-05,2]
[348974556,1736909437854,-521.47849942,9.999e-05,2]
[348974559,1736909437863,-539.24036764,9.999e-05,2]
[348974560,1736909437873,-529.36150934,9.999e-05,2]
[348974561,1736909437882,-521.45806203,9.999e-05,2]
[348974563,1736909437892,-891.531389,9.999e-05,2]
[348974564,1736909437901,-518.50135864,9.999e-05,2]
[348974565,1736909437911,-525.60823401,9.999e-05,2]
[348974566,1736909437920,-536.976356,9.999e-05,2]
[348974567,1736909437930,-500.0,9.999e-05,2]
[348974568,1736909437942,-500.0,9.999e-05,2]
[348974569,1736909437951,-528.16739892,9.999e-05,2]
[348974570,1736909437961,-524.13293853,9.999e-05,2]
[348974571,1736909437971,-520.92652701,9.999e-05,2]
[348974572,1736909437981,-525.42561845,9.999e-05,2]
[348974573,1736909437991,-526.65208406,9.999e-05,2]
[348974574,1736909438000,-500.0,9.999e-05,2]
[348974575,1736909438010,-156.28929935,9.999e-05,2]
[348974576,1736909438019,-525.78643748,9.999e-05,2]
[348974577,1736909438028,-503.48750783,9.999e-05,2]
[348974578,1736909438038,-384.41238679,9.999e-05,2]
[348974579,1736909438047,-517.25470298,9.999e-05,2]
[348974580,1736909438057,-500.0,9.999e-05,2]
[348974581,1736909438066,-521.2852042,9.999e-05,2]
[348974582,1736909438075,-500.0,9.999e-05,2]
[348974583,1736909438086,-500.0,9.999e-05,2]
[348974584,1736909438095,-321.57229604,9.999e-05,2]
[348974585,1736909438105,-500.0,9.999e-05,2]
[348974586,1736909438114,-500.0,9.999e-05,2]
[348974587,1736909438124,-420.84052973,9.999e-05,2]
[348974588,1736909438133,-508.58180898,9.999e-05,2]
[348974589,1736909438142,-500.0,9.999e-05,2]
[348974590,1736909438151,-500.0,9.999e-05,2]
[348974591,1736909438161,-514.64161647,9.999e-05,2]
[348974592,1736909438171,-515.90511797,9.999e-05,2]
[348974593,1736909438180,-522.37811928,9.999e-05,2]
[348974594,1736909438191,-500.0,9.999e-05,2]
[348974595,1736909438200,-500.0,9.999e-05,2]
[348974596,1736909438210,-500.0,9.999e-05,2]
[348974597,1736909438219,-500.0,9.999e-05,2]
[348974598,1736909438228,-527.20848399,9.999e-05,2]
[348974599,1736909438237,-500.0,9.999e-05,2]
[348974600,1736909438246,-580.71351192,9.999e-05,2]
[348974601,1736909438255,-500.0,9.999e-05,2]
[348974602,1736909438263,-500.0,9.999e-05,2]
[348974603,1736909438272,-500.0,9.999e-05,2]
[348974604,1736909438282,-525.27126661,9.999e-05,2]
[348974605,1736909438291,-500.0,9.999e-05,2]
[348974606,1736909438301,-500.0,9.999e-05,2]
[348974607,1736909438310,-513.26279211,9.999e-05,2]
[348974608,1736909438319,-500.0,9.999e-05,2]
[348974609,1736909438329,-467.90843776,9.999e-05,2]
[348974610,1736909438339,-500.0,9.999e-05,2]
[348974611,1736909438348,-507.61904746,9.999e-05,2]
[348974612,1736909438358,-500.0,9.999e-05,2]
[348974613,1736909438367,-500.0,9.999e-05,2]
[348974614,1736909438376,-519.91622318,9.999e-05,2]
[348974615,1736909438386,-510.68517543,9.999e-05,2]
[348974616,1736909438395,-500.0,9.999e-05,2]
[348974617,1736909438405,-500.0,9.999e-05,2]
[348974618,1736909438415,-500.0,9.999e-05,2]
[348974619,1736909438429,-410.52405421,9.999e-05,2]
[348974620,1736909438441,-500.0,9.999e-05,2]
[348974621,1736909438450,-500.0,9.999e-05,2]
[348974622,1736909438460,-500.0,9.999e-05,2]
[348974623,1736909438470,-552.97424127,9.999e-05,2]
[348974624,1736909438479,-500.0,9.999e-05,2]
[348974625,1736909438489,-598.75175439,9.999e-05,2]
[348974626,1736909438499,-500.0,9.999e-05,2]
[348974627,1736909438509,-279.11582608,9.999e-05,2]
[348974628,1736909438518,-510.54246144,9.999e-05,2]
[348974629,1736909438527,-500.0,9.999e-05,2]
[348974630,1736909438537,-158.89040136,9.999e-05,2]
[348974631,1736909438692,-359.70666307,9.999e-05,2]
[348974632,1736909438702,-500.0,9.999e-05,2]
[348974633,1736909438710,-176.68448434,9.999e-05,2]
[348974634,1736909438729,-347.38175283,9.999e-05,2]
[348974635,1736909438738,-525.97909001,9.999e-05,2]
[348974636,1736909438746,-604.92267077,9.999e-05,2]
[348974637,1736909438755,-500.0,9.999e-05,2]
[348974638,1736909438766,-49.77766639,9.999e-05,2]
[348974639,1736909440070,-569.56233361,9.999e-05,2]
[348974640,1736909440079,-402.07856384,9.999e-05,2]
[348974641,1736909440091,-116.84666318,9.999e-05,2]
[348974642,1736909440101,-500.0,9.999e-05,2]
[348974643,1736909440110,-500.0,9.999e-05,2]
[348974644,1736909440119,-630.61637149,9.999e-05,2]
[348974645,1736909440128,-527.87374871,9.999e-05,2]
[348974646,1736909440137,-500.0,9.999e-05,2]
[348974647,1736909440146,-574.87497049,9.999e-05,2]
[348974648,1736909440154,-528.44,9.999e-05,2]
[348974649,1736909440163,-500.0,9.999e-05,2]
[348974650,1736909440173,-500.0,9.999e-05,2]
[348974651,1736909440183,-500.0,9.999e-05,2]
[348974652,1736909440193,-514.98359209,9.999e-05,2]
[348974653,1736909440202,-500.0,9.999e-05,2]
[348974654,1736909440211,-500.0,9.999e-05,2]
[348974655,1736909440221,-525.03437687,9.999e-05,2]
[348974656,1736909440230,-521.12944938,9.999e-05,2]
[348974657,1736909440240,-500.0,9.999e-05,2]
[348974658,1736909440249,-572.82,9.999e-05,2]
[348974659,1736909440259,-500.0,9.999e-05,2]
[348974660,1736909440268,-500.0,9.999e-05,2]
[348974661,1736909440277,-500.0,9.999e-05,2]
[348974662,1736909440287,-209.22198475,9.999e-05,2]
[348974663,1736909440296,-520.44262384,9.999e-05,2]
[348974664,1736909440305,-522.11220907,9.999e-05,2]
[348974665,1736909440313,-500.0,9.999e-05,2]
[348974666,1736909440322,-500.0,9.999e-05,2]
[348974667,1736909440332,-511.85395517,9.999e-05,2]
[348974668,1736909440343,-500.0,9.999e-05,2]
[348974669,1736909440353,-500.0,9.999e-05,2]
[348974670,1736909440362,-500.0,9.999e-05,2]
[348974671,1736909440371,-404.73191228,9.999e-05,2]
[348974672,1736909440383,-95.26808772,9.999e-05,2]
[348974673,1736909440393,-500.0,9.999e-05,2]
[348974674,1736909440403,-507.27920453,9.999e-05,2]
[348974675,1736909440413,-520.71783383,9.999e-05,2]
[348974676,1736909440424,-604.25,9.999e-05,2]
[348974677,1736909440433,-518.33236595,9.999e-05,2]
[348974678,1736909440442,-445.86211822,9.999e-05,2]
[348974679,1736909440452,-500.0,9.999e-05,2]
[348974680,1736909440461,-500.0,9.999e-05,2]
[348974681,1736909440470,-500.0,9.999e-05,2]
[348974682,1736909440479,-500.0,9.999e-05,2]
[348974683,1736909440489,-500.0,9.999e-05,2]
[348974684,1736909440498,-514.78838508,9.999e-05,2]
[348974685,1736909440508,-500.0,9.999e-05,2]
[348974686,1736909440517,-500.0,9.999e-05,2]
[348974687,1736909440527,-912.89,9.999e-05,2]
[348974688,1736909440536,-501.10143337,9.999e-05,2]
[348974689,1736909440545,-500.0,9.999e-05,2]
[348974690,1736909440554,-500.0,9.999e-05,2]
[348974691,1736909440564,-500.0,9.999e-05,2]
[348974692,1736909440572,-500.0,9.999e-05,2]
[348974693,1736909440582,-500.0,9.999e-05,2]
[348974694,1736909440593,-500.0,9.999e-05,2]
[348974695,1736909440602,-506.84907425,9.999e-05,2]
[348974696,1736909440612,-500.0,9.999e-05,2]
[348974697,1736909440621,-500.0,9.999e-05,2]
[348974698,1736909440630,-500.0,9.999e-05,2]
[348974699,1736909440639,-500.0,9.999e-05,2]
[348974700,1736909440649,-500.0,9.999e-05,2]
[348974701,1736909440658,-500.0,9.999e-05,2]
[348974702,1736909440667,-479.81542908,9.999e-05,2]
[348974703,1736909440676,-500.0,9.999e-05,2]
[348974704,1736909440686,-615.16287303,9.999e-05,2]
[348974705,1736909440695,-500.0,9.999e-05,2]
[348974706,1736909440704,-501.93254957,9.999e-05,2]
[348974707,1736909440713,-500.0,9.999e-05,2]
[348974708,1736909440723,-500.0,9.999e-05,2]
[348974709,1736909440733,-500.0,9.999e-05,2]
[348974710,1736909440742,-500.0,9.999e-05,2]
[348974711,1736909440752,-500.0,9.999e-05,2]
[348974712,1736909440761,-500.0,9.999e-05,2]
[348974713,1736909440770,-500.0,9.999e-05,2]
[348974714,1736909440779,-500.0,9.999e-05,2]
[348974715,1736909440789,-500.0,9.999e-05,2]
[348974716,1736909440798,-500.0,9.999e-05,2]
[348974717,1736909440807,-500.0,9.999e-05,2]
[348974718,1736909440816,-502.25822909,9.999e-05,2]
[348974719,1736909440825,-500.0,9.999e-05,2]
[348974720,1736909440836,-500.0,9.999e-05,2]
[348974721,1736909440844,-500.0,9.999e-05,2]
[348974722,1736909440853,-500.0,9.999e-05,2]
[348974723,1736909440863,-500.0,9.999e-05,2]
[348974724,1736909440873,-500.0,9.999e-05,2]
[348974725,1736909440883,-500.0,9.999e-05,2]
[348974726,1736909440892,-500.0,9.999e-05,2]
[348974727,1736909440902,-500.0,9.999e-05,2]
[348974728,1736909440911,-595.62,9.999e-05,2]
[348974729,1736909440920,-500.0,9.999e-05,2]
[348974730,1736909440929,-500.0,9.999e-05,2]
[348974731,1736909440939,-594.17,9.999e-05,2]
[348974732,1736909440948,-511.13865883,9.999e-05,2]
[348974733,1736909440958,-500.0,9.999e-05,2]
[348974734,1736909440967,-519.7704139,9.999e-05,2]
[348974735,1736909440976,-158.99157455,9.999e-05,2]
[348974736,1736909440989,-366.37162793,9.999e-05,2]
[348974737,1736909440998,-500.0,9.999e-05,2]
[348974738,1736909441008,-500.0,9.999e-05,2]
[348974739,1736909441017,-500.0,9.999e-05,2]
[348974740,1736909441027,-500.0,9.999e-05,2]
[348974741,1736909441036,-500.0,9.999e-05,2]
[348974742,1736909441049,-500.0,9.999e-05,2]
[348974743,1736909441058,-516.12151681,9.999e-05,2]
[348974744,1736909441068,-507.91254058,9.999e-05,2]
[348974745,1736909441077,-500.0,9.999e-05,2]
[348974746,1736909441086,-521.12748534,9.999e-05,2]
[348974747,1736909441095,-616.24,9.999e-05,2]
[348974748,1736909441105,-500.0,9.999e-05,2]
[348974749,1736909441114,-500.0,9.999e-05,2]
[348974750,1736909441123,-500.0,9.999e-05,2]
[348974751,1736909441133,-589.79,9.999e-05,2]
[348974752,1736909441142,-232.99505215,9.999e-05,2]
[348974753,1736909441151,-500.0,9.999e-05,2]
[348974754,1736909441161,-500.0,9.999e-05,2]
[348974755,1736909441170,-500.0,9.999e-05,2]
[348974756,1736909441180,-500.0,9.999e-05,2]
[348974757,1736909441189,-539.10554696,9.999e-05,2]
[348974758,1736909441198,-500.0,9.999e-05,2]
[348974759,1736909441207,-500.0,9.999e-05,2]
[348974760,1736909441217,-500.0,9.999e-05,2]
[348974761,1736909441227,-502.99,9.999e-05,2]
[348974762,1736909441236,-500.0,9.999e-05,2]
[348974763,1736909441246,-500.0,9.999e-05,2]
[348974764,1736909441260,-395.62072988,9.999e-05,2]
[348974765,1736909441270,-539.36,9.999e-05,2]
[348974766,1736909441280,-500.0,9.999e-05,2]
[348974767,1736909441290,-14.15715505,9.999e-05,2]
[348974768,1736909441303,-497.89491258,9.999e-05,2]
[348974769,1736909441314,-107.63415124,9.999e-05,2]
[348974770,1736909441322,-500.0,9.999e-05,2]
[348974771,1736909441332,-526.04111427,9.999e-05,2]
[348974772,1736909441342,-500.0,9.999e-05,2]
[348974773,1736909441351,-500.0,9.999e-05,2]
[348974774,1736909441360,-593.24,9.999e-05,2]
[348974775,1736909441369,-49.7897346,9.999e-05,2]
[348974776,1736909441390,-450.2102654,9.999e-05,2]
[348974777,1736909441400,-500.0,9.999e-05,2]
[348974778,1736909441410,-500.0,9.999e-05,2]
[348974779,1736909441424,-534.46,9.999e-05,2]
[348974780,1736909441433,-500.0,9.999e-05,2]
[348974781,1736909441443,-603.15,9.999e-05,2]
[348974782,1736909441452,-212.24096715,9.999e-05,2]
[348974783,1736909441462,-500.0,9.999e-05,2]
[348974784,1736909441471,-500.0,9.999e-05,2]
[348974785,1736909441480,-500.0,9.999e-05,2]
[348974786,1736909441490,-545.13700577,9.999e-05,2]
[348974787,1736909441499,-500.0,9.999e-05,2]
[348974788,1736909441508,-500.0,9.999e-05,2]
[348974789,1736909441517,-500.0,9.999e-05,2]
[348974790,1736909441527,-859.18,9.999e-05,2]
[348974791,1736909441536,-500.0,9.999e-05,2]
[348974792,1736909441545,-651.54793983,9.999e-05,2]
[348974793,1736909441554,-500.0,9.999e-05,2]